[Event "*** Titled Tuesday Blitz"]
[Site "Chess.com"]
[Date "2019.01.01"]
[Round "1"]
[White "volcanoexplorer"]
[Black "jerom555888"]
[Result "0-1"]
[WhiteElo "2353"]
[BlackElo "2703"]
[TimeControl "180+2"]
[EndTime "13:07:28 PST"]
[Termination "jerom555888 won by checkmate"]

1. e4 {[%clk 0:03:01]} 1... a6 {[%clk 0:03:00.7]} 2. d4 {[%clk 0:03:01.9]} 2...
e6 {[%clk 0:03:02.2]} 3. Nf3 {[%clk 0:03:03.4]} 3... d5 {[%clk 0:03:03.6]} 4.
Nc3 {[%clk 0:03:03.9]} 4... Bb4 {[%clk 0:03:03.8]} 5. e5 {[%clk 0:03:04.6]} 5...
c5 {[%clk 0:03:04]} 6. a3 {[%clk 0:03:02.4]} 6... Ba5 {[%clk 0:03:05.2]} 7. Be3
{[%clk 0:02:58.2]} 7... cxd4 {[%clk 0:03:01.4]} 8. Nxd4 {[%clk 0:02:58.4]} 8...
Ne7 {[%clk 0:03:01.5]} 9. f4 {[%clk 0:02:52.8]} 9... Bxc3+ {[%clk 0:03:00.4]}
10. bxc3 {[%clk 0:02:53.3]} 10... Qc7 {[%clk 0:03:01.8]} 11. Qd2 {[%clk
0:02:48.3]} 11... Nd7 {[%clk 0:03:00.7]} 12. Bd3 {[%clk 0:02:47.5]} 12... Nc5
{[%clk 0:03:02.1]} 13. O-O {[%clk 0:02:48.3]} 13... Bd7 {[%clk 0:03:01.6]} 14.
f5 {[%clk 0:02:24.5]} 14... Nxd3 {[%clk 0:02:52.6]} 15. cxd3 {[%clk 0:02:23.3]}
15... Nxf5 {[%clk 0:02:50.9]} 16. Nxf5 {[%clk 0:02:20.9]} 16... exf5 {[%clk
0:02:52.8]} 17. Rab1 {[%clk 0:01:39.8]} 17... Rc8 {[%clk 0:02:49.2]} 18. Bd4
{[%clk 0:01:35]} 18... O-O {[%clk 0:02:49]} 19. Qg5 {[%clk 0:01:30.3]} 19... Be6
{[%clk 0:02:48.7]} 20. Rf3 {[%clk 0:01:29.4]} 20... h6 {[%clk 0:02:48.7]} 21.
Qh5 {[%clk 0:01:27.7]} 21... Kh7 {[%clk 0:02:45.8]} 22. Rbf1 {[%clk 0:01:11.2]}
22... Qa5 {[%clk 0:02:30.8]} 23. Rh3 {[%clk 0:01:06.3]} 23... Rxc3 {[%clk
0:02:23.5]} 24. Bxc3 {[%clk 0:00:46.2]} 24... Qxc3 {[%clk 0:02:24.1]} 25. Qe2
{[%clk 0:00:35.2]} 25... Rc8 {[%clk 0:02:14.1]} 26. Rg3 {[%clk 0:00:30.9]} 26...
Qd4+ {[%clk 0:01:59.2]} 27. Kh1 {[%clk 0:00:31.9]} 27... Rc3 {[%clk 0:01:58.2]}
28. Qb2 {[%clk 0:00:24.8]} 28... b5 {[%clk 0:01:52.2]} 29. Rgf3 {[%clk
0:00:16.2]} 29... Rxd3 {[%clk 0:01:52]} 30. Qxd4 {[%clk 0:00:17]} 30... Rxd4
{[%clk 0:01:53.9]} 31. Rb1 {[%clk 0:00:16.5]} 31... Re4 {[%clk 0:01:54]} 32. h3
{[%clk 0:00:16.9]} 32... Rxe5 {[%clk 0:01:53.2]} 33. a4 {[%clk 0:00:18.2]} 33...
Bd7 {[%clk 0:01:46.4]} 34. axb5 {[%clk 0:00:17.9]} 34... Bxb5 {[%clk 0:01:48.3]}
35. Rf4 {[%clk 0:00:17.5]} 35... Bc4 {[%clk 0:01:48.4]} 36. Ra1 {[%clk
0:00:16.6]} 36... g5 {[%clk 0:01:49.3]} 37. Rd4 {[%clk 0:00:17.6]} 37... Re4
{[%clk 0:01:47.1]} 38. Kg1 {[%clk 0:00:19]} 38... Rxd4 {[%clk 0:01:48.1]} 39.
Kf2 {[%clk 0:00:20]} 39... Rd2+ {[%clk 0:01:48.4]} 40. Kf3 {[%clk 0:00:21.4]}
40... d4 {[%clk 0:01:45.1]} 41. Ra5 {[%clk 0:00:21.9]} 41... Bb5 {[%clk
0:01:41.9]} 42. Kg3 {[%clk 0:00:21.5]} 42... Kg6 {[%clk 0:01:41.5]} 43. h4
{[%clk 0:00:18.5]} 43... f4+ {[%clk 0:01:42.7]} 44. Kh3 {[%clk 0:00:19]} 44...
f5 {[%clk 0:01:41.5]} 45. hxg5 {[%clk 0:00:19.8]} 45... hxg5 {[%clk 0:01:43.4]}
46. g4 {[%clk 0:00:21.3]} 46... Bf1# {[%clk 0:01:39.5]} 0-1

[Event "*** Titled Tuesday Blitz"]
[Site "Chess.com"]
[Date "2019.01.01"]
[Round "1"]
[White "vugarrasulov"]
[Black "DrRiebert"]
[Result "1-0"]
[WhiteElo "2797"]
[BlackElo "2414"]
[TimeControl "180+2"]
[EndTime "13:07:33 PST"]
[Termination "vugarrasulov won by resignation"]

1. e4 {[%clk 0:03:01.9]} 1... c5 {[%clk 0:03:00.6]} 2. Nf3 {[%clk 0:03:02.5]}
2... Nc6 {[%clk 0:03:01.9]} 3. d4 {[%clk 0:03:03.7]} 3... cxd4 {[%clk
0:03:03.8]} 4. Nxd4 {[%clk 0:03:05.6]} 4... g6 {[%clk 0:03:05.5]} 5. c4 {[%clk
0:03:05.1]} 5... Nf6 {[%clk 0:03:06.9]} 6. Nc3 {[%clk 0:03:05.9]} 6... d6 {[%clk
0:03:08.4]} 7. Be2 {[%clk 0:03:04.3]} 7... Nxd4 {[%clk 0:03:07.2]} 8. Qxd4
{[%clk 0:03:06.2]} 8... Bg7 {[%clk 0:03:08.9]} 9. Be3 {[%clk 0:03:07.2]} 9...
O-O {[%clk 0:03:10.5]} 10. Qd2 {[%clk 0:03:08.3]} 10... a5 {[%clk 0:03:12.2]}
11. O-O {[%clk 0:03:06.4]} 11... a4 {[%clk 0:03:13.3]} 12. f3 {[%clk 0:03:05.9]}
12... Qa5 {[%clk 0:03:14.4]} 13. Rfc1 {[%clk 0:03:06.9]} 13... Be6 {[%clk
0:03:14.7]} 14. Rab1 {[%clk 0:03:07.8]} 14... Rac8 {[%clk 0:03:12.7]} 15. b3
{[%clk 0:03:06]} 15... axb3 {[%clk 0:03:13.4]} 16. axb3 {[%clk 0:03:07.9]} 16...
Qb4 {[%clk 0:03:05.6]} 17. Bf1 {[%clk 0:02:52.9]} 17... Ra8 {[%clk 0:02:54]} 18.
Nd5 {[%clk 0:02:37.2]} 18... Nxd5 {[%clk 0:02:52.7]} 19. cxd5 {[%clk 0:02:37.6]}
19... Qxd2 {[%clk 0:02:53.6]} 20. Bxd2 {[%clk 0:02:39.5]} 20... Bd4+ {[%clk
0:02:54.5]} 21. Kh1 {[%clk 0:02:40.7]} 21... Bd7 {[%clk 0:01:42.5]} 22. Rc7
{[%clk 0:02:41.3]} 22... Rfd8 {[%clk 0:01:42.6]} 23. Rxb7 {[%clk 0:02:36.3]}
23... Ra2 {[%clk 0:01:36.7]} 24. Be1 {[%clk 0:02:34.6]} 24... Kf8 {[%clk
0:01:32.8]} 25. b4 {[%clk 0:02:30.4]} 25... Ke8 {[%clk 0:01:16.3]} 26. Bb5
{[%clk 0:02:14.6]} 26... Bxb5 {[%clk 0:00:46]} 27. Rxb5 {[%clk 0:02:16.5]} 27...
Rc8 {[%clk 0:00:46.4]} 28. Ra5 {[%clk 0:02:06.6]} 28... Re2 {[%clk 0:00:42.9]}
29. Bg3 {[%clk 0:01:51.6]} 29... h5 {[%clk 0:00:38.7]} 30. Rd1 {[%clk
0:01:38.5]} 30... Rcc2 {[%clk 0:00:32.7]} 31. b5 {[%clk 0:01:14.5]} 31... Bc5
{[%clk 0:00:24.6]} 32. Ra6 {[%clk 0:01:01.9]} 32... Rxg2 {[%clk 0:00:23.3]} 33.
b6 {[%clk 0:01:03.2]} 33... Kd7 {[%clk 0:00:21.6]} 34. Ra7+ {[%clk 0:01:01.1]}
34... Kc8 {[%clk 0:00:21.2]} 35. Rc7+ {[%clk 0:00:55]} 35... Kb8 {[%clk
0:00:22.5]} 36. Rxc5 {[%clk 0:00:53.8]} 1-0

[Event "*** Titled Tuesday Blitz"]
[Site "Chess.com"]
[Date "2019.01.01"]
[Round "1"]
[White "riconaipe"]
[Black "michaelq2d5"]
[Result "0-1"]
[WhiteElo "2398"]
[BlackElo "2757"]
[TimeControl "180+2"]
[EndTime "13:07:34 PST"]
[Termination "michaelq2d5 won by resignation"]

1. d4 {[%clk 0:03:01.9]} 1... d5 {[%clk 0:03:00.8]} 2. c4 {[%clk 0:03:02.3]}
2... dxc4 {[%clk 0:03:01.7]} 3. Nf3 {[%clk 0:03:01.4]} 3... Nf6 {[%clk
0:03:02.7]} 4. e3 {[%clk 0:03:02.4]} 4... e6 {[%clk 0:03:04.1]} 5. Bxc4 {[%clk
0:03:03.7]} 5... a6 {[%clk 0:03:05.7]} 6. O-O {[%clk 0:03:04.6]} 6... c5 {[%clk
0:03:07.4]} 7. a3 {[%clk 0:03:04.3]} 7... b5 {[%clk 0:03:06.5]} 8. Ba2 {[%clk
0:03:05]} 8... Bb7 {[%clk 0:03:05.9]} 9. dxc5 {[%clk 0:03:03.1]} 9... Bxc5
{[%clk 0:03:06.5]} 10. b4 {[%clk 0:03:03.9]} 10... Bd6 {[%clk 0:03:07.3]} 11.
Bb2 {[%clk 0:03:04.8]} 11... O-O {[%clk 0:03:07.2]} 12. Nbd2 {[%clk 0:03:05.9]}
12... Nbd7 {[%clk 0:03:07.4]} 13. Qe2 {[%clk 0:03:07.1]} 13... Rc8 {[%clk
0:03:06.5]} 14. Rac1 {[%clk 0:03:07.6]} 14... Qe7 {[%clk 0:03:06.7]} 15. Nb3
{[%clk 0:03:07.3]} 15... Bd5 {[%clk 0:03:06.2]} 16. Ba1 {[%clk 0:03:02.3]} 16...
Bc4 {[%clk 0:03:05.3]} 17. Rxc4 {[%clk 0:03:00.1]} 17... Rxc4 {[%clk 0:02:04.9]}
18. Nc5 {[%clk 0:02:56]} 18... Bxc5 {[%clk 0:01:38.6]} 19. Bxc4 {[%clk
0:02:55.3]} 19... bxc4 {[%clk 0:01:40.5]} 20. bxc5 {[%clk 0:02:54.9]} 20... Qxc5
{[%clk 0:01:42.4]} 21. Rc1 {[%clk 0:02:53.7]} 21... Rc8 {[%clk 0:01:43.3]} 22.
Qb2 {[%clk 0:02:50.3]} 22... Rb8 {[%clk 0:01:26.1]} 23. Qc3 {[%clk 0:02:48]}
23... Rb3 {[%clk 0:01:24.9]} 24. Qd2 {[%clk 0:02:35.8]} 24... Qxa3 {[%clk
0:01:14]} 25. h4 {[%clk 0:02:10.3]} 25... Rd3 {[%clk 0:00:47.3]} 26. Qc2 {[%clk
0:02:05.6]} 26... Nb6 {[%clk 0:00:47.9]} 27. Ne5 {[%clk 0:02:01.5]} 27... Rd8
{[%clk 0:00:42.2]} 28. Nxc4 {[%clk 0:01:56.3]} 28... Nxc4 {[%clk 0:00:43.3]} 29.
Qxc4 {[%clk 0:01:57.8]} 29... h6 {[%clk 0:00:37.2]} 30. Be5 {[%clk 0:01:53.8]}
30... a5 {[%clk 0:00:31.6]} 31. Ra1 {[%clk 0:01:49.5]} 31... Qb4 {[%clk
0:00:32.8]} 32. Qa2 {[%clk 0:01:28.7]} 32... Rd5 {[%clk 0:00:28]} 33. Rb1 {[%clk
0:01:23.4]} 33... Qxh4 {[%clk 0:00:27.6]} 34. Rb8+ {[%clk 0:01:18.2]} 34... Kh7
{[%clk 0:00:28.9]} 35. Qc2+ {[%clk 0:01:19.1]} 35... Qe4 {[%clk 0:00:30]} 36.
Qxe4+ {[%clk 0:01:13.8]} 36... Nxe4 {[%clk 0:00:31.9]} 37. Bd4 {[%clk
0:01:13.3]} 37... e5 {[%clk 0:00:33.3]} 38. Bb2 {[%clk 0:01:11.8]} 38... Rd1+
{[%clk 0:00:33.3]} 39. Kh2 {[%clk 0:01:12.7]} 39... Nxf2 {[%clk 0:00:34.6]} 40.
Bc3 {[%clk 0:01:06.9]} 40... a4 {[%clk 0:00:34.6]} 41. Ra8 {[%clk 0:01:01.8]}
41... Rh1+ {[%clk 0:00:34.5]} 42. Kg3 {[%clk 0:01:01.5]} 42... Ne4+ {[%clk
0:00:36.4]} 43. Kf3 {[%clk 0:01:02.4]} 43... Nxc3 {[%clk 0:00:38.3]} 0-1

[Event "*** Titled Tuesday Blitz"]
[Site "Chess.com"]
[Date "2019.01.01"]
[Round "1"]
[White "DoHoChess"]
[Black "pedroholly22"]
[Result "1-0"]
[WhiteElo "2605"]
[BlackElo "2249"]
[TimeControl "180+2"]
[EndTime "13:07:50 PST"]
[Termination "DoHoChess won by resignation"]

1. Nf3 {[%clk 0:03:00.2]} 1... Nf6 {[%clk 0:02:59.4]} 2. c4 {[%clk 0:03:01.4]}
2... e6 {[%clk 0:02:59]} 3. Nc3 {[%clk 0:03:02.9]} 3... Bb4 {[%clk 0:02:55.9]}
4. g3 {[%clk 0:03:03.2]} 4... O-O {[%clk 0:02:51.9]} 5. Bg2 {[%clk 0:03:03.4]}
5... b6 {[%clk 0:02:45.6]} 6. d3 {[%clk 0:03:04]} 6... Bb7 {[%clk 0:02:45.3]} 7.
e4 {[%clk 0:03:04.9]} 7... d5 {[%clk 0:02:45.5]} 8. e5 {[%clk 0:02:57.2]} 8...
d4 {[%clk 0:02:24.5]} 9. a3 {[%clk 0:02:46.5]} 9... dxc3 {[%clk 0:01:19.9]} 10.
axb4 {[%clk 0:02:46]} 10... Ng4 {[%clk 0:01:15.8]} 11. O-O {[%clk 0:02:23.4]}
11... cxb2 {[%clk 0:01:15.1]} 12. Bxb2 {[%clk 0:02:23]} 12... Nd7 {[%clk
0:01:12]} 13. d4 {[%clk 0:02:19.4]} 13... a5 {[%clk 0:01:05.2]} 14. bxa5 {[%clk
0:02:16.8]} 14... bxa5 {[%clk 0:01:03.9]} 15. Bc3 {[%clk 0:02:06.5]} 15... a4
{[%clk 0:00:54.9]} 16. Rxa4 {[%clk 0:02:01.9]} 16... Rxa4 {[%clk 0:00:54.4]} 17.
Qxa4 {[%clk 0:02:03.8]} 17... Nb6 {[%clk 0:00:54.7]} 18. Qb5 {[%clk 0:01:52.6]}
18... Qc8 {[%clk 0:00:45.6]} 19. Ra1 {[%clk 0:01:48.1]} 19... Nh6 {[%clk
0:00:43.5]} 20. Nd2 {[%clk 0:01:11]} 20... Bxg2 {[%clk 0:00:43.2]} 21. Kxg2
{[%clk 0:01:12.9]} 21... Nf5 {[%clk 0:00:42.9]} 22. Ne4 {[%clk 0:01:12.1]} 22...
Qb7 {[%clk 0:00:43.3]} 23. f3 {[%clk 0:01:12.8]} 23... Rd8 {[%clk 0:00:37.1]}
24. c5 {[%clk 0:01:08.5]} 24... Qd5 {[%clk 0:00:35.7]} 25. Qe2 {[%clk
0:00:47.3]} 25... Nxd4 {[%clk 0:00:33.5]} 26. Bxd4 {[%clk 0:00:41.8]} 26... Qxd4
{[%clk 0:00:35.4]} 27. cxb6 {[%clk 0:00:25.3]} 27... Qxa1 {[%clk 0:00:35.5]} 28.
bxc7 {[%clk 0:00:26.3]} 28... Rc8 {[%clk 0:00:34.8]} 29. Qd2 {[%clk 0:00:27.9]}
29... Qxe5 {[%clk 0:00:32.7]} 30. Qd8+ {[%clk 0:00:27.1]} 1-0

[Event "*** Titled Tuesday Blitz"]
[Site "Chess.com"]
[Date "2019.01.01"]
[Round "1"]
[White "HouseOfDurin"]
[Black "ramses135"]
[Result "1-0"]
[WhiteElo "1830"]
[BlackElo "2466"]
[TimeControl "180+2"]
[EndTime "13:07:54 PST"]
[Termination "HouseOfDurin won by resignation"]

1. d4 {[%clk 0:03:00]} 1... f5 {[%clk 0:02:58.7]} 2. Bg5 {[%clk 0:03:00.7]} 2...
g6 {[%clk 0:02:58.7]} 3. e3 {[%clk 0:02:55.1]} 3... Bg7 {[%clk 0:02:58.3]} 4. c4
{[%clk 0:02:52.5]} 4... d6 {[%clk 0:02:58.8]} 5. Nc3 {[%clk 0:02:53.8]} 5... Nf6
{[%clk 0:02:54.1]} 6. h4 {[%clk 0:02:53.7]} 6... h6 {[%clk 0:02:51.2]} 7. Bxf6
{[%clk 0:02:54.4]} 7... Bxf6 {[%clk 0:02:53.1]} 8. Bd3 {[%clk 0:02:52.4]} 8...
e5 {[%clk 0:02:46.5]} 9. dxe5 {[%clk 0:02:53]} 9... dxe5 {[%clk 0:02:48.4]} 10.
Qc2 {[%clk 0:02:52.8]} 10... e4 {[%clk 0:02:44.3]} 11. Be2 {[%clk 0:02:53.7]}
11... c6 {[%clk 0:02:39.2]} 12. h5 {[%clk 0:02:52]} 12... g5 {[%clk 0:02:37.8]}
13. g4 {[%clk 0:02:52.9]} 13... Qe7 {[%clk 0:02:32.8]} 14. gxf5 {[%clk
0:02:32.3]} 14... Bxf5 {[%clk 0:02:34.7]} 15. f3 {[%clk 0:02:33.1]} 15... Na6
{[%clk 0:02:20.2]} 16. Nxe4 {[%clk 0:02:29.2]} 16... Bxe4 {[%clk 0:02:16.7]} 17.
Qxe4 {[%clk 0:02:31.1]} 17... Qxe4 {[%clk 0:02:14.4]} 18. fxe4 {[%clk 0:02:33]}
18... Bxb2 {[%clk 0:02:11.2]} 19. Rb1 {[%clk 0:02:33.5]} 19... Bc3+ {[%clk
0:02:12.2]} 20. Kf2 {[%clk 0:02:34.3]} 20... Nc5 {[%clk 0:02:07.6]} 21. Bf3
{[%clk 0:02:23.2]} 21... O-O-O {[%clk 0:02:02.8]} 22. Ne2 {[%clk 0:02:22.1]}
22... Be5 {[%clk 0:01:59.6]} 23. Rhd1 {[%clk 0:02:18.5]} 23... Rhf8 {[%clk
0:01:50.4]} 24. Kg2 {[%clk 0:02:18.7]} 24... Kc7 {[%clk 0:01:45]} 25. Nd4 {[%clk
0:02:12.4]} 25... Bxd4 {[%clk 0:00:57.8]} 26. exd4 {[%clk 0:02:14.3]} 26... Ne6
{[%clk 0:00:58.5]} 27. d5 {[%clk 0:02:02.6]} 27... Nf4+ {[%clk 0:00:59.4]} 28.
Kg3 {[%clk 0:02:01.2]} 28... cxd5 {[%clk 0:00:32.7]} 29. cxd5 {[%clk 0:01:55.3]}
29... Rfe8 {[%clk 0:00:30.3]} 30. Rb4 {[%clk 0:01:34.6]} 30... Rd6 {[%clk
0:00:27.2]} 31. Rc1+ {[%clk 0:01:31.6]} 31... Kb8 {[%clk 0:00:21.7]} 32. Rc3
{[%clk 0:01:24]} 32... b6 {[%clk 0:00:21.5]} 33. Rbc4 {[%clk 0:01:24.2]} 33...
Re7 {[%clk 0:00:19.1]} 34. Rc6 {[%clk 0:01:24.7]} 34... Rxc6 {[%clk 0:00:10.8]}
35. Rxc6 {[%clk 0:01:26.6]} 35... Kb7 {[%clk 0:00:03.7]} 36. Rxh6 {[%clk
0:01:27]} 36... Ka6 {[%clk 0:00:04.8]} 37. Rf6 {[%clk 0:01:21.5]} 37... Rh7
{[%clk 0:00:03.9]} 38. Rxf4 {[%clk 0:01:22]} 38... gxf4+ {[%clk 0:00:05]} 39.
Kxf4 {[%clk 0:01:23.9]} 39... Kb5 {[%clk 0:00:06.7]} 40. Kg5 {[%clk 0:01:16.4]}
40... Kc5 {[%clk 0:00:08]} 41. Kg6 {[%clk 0:01:13.7]} 41... Rh8 {[%clk
0:00:09.4]} 42. h6 {[%clk 0:01:14.9]} 42... Rf8 {[%clk 0:00:08.8]} 43. h7 {[%clk
0:01:13.1]} 43... Kd6 {[%clk 0:00:10]} 1-0

[Event "*** Titled Tuesday Blitz"]
[Site "Chess.com"]
[Date "2019.01.01"]
[Round "1"]
[White "platy3"]
[Black "mc4chess"]
[Result "1-0"]
[WhiteElo "2816"]
[BlackElo "2427"]
[TimeControl "180+2"]
[EndTime "13:07:56 PST"]
[Termination "platy3 won by resignation"]

1. e4 {[%clk 0:03:01]} 1... d5 {[%clk 0:02:56.9]} 2. exd5 {[%clk 0:03:01.9]}
2... Qxd5 {[%clk 0:02:58.8]} 3. Nc3 {[%clk 0:03:03.3]} 3... Qd8 {[%clk
0:02:59.9]} 4. g3 {[%clk 0:03:04.5]} 4... Nf6 {[%clk 0:03:00]} 5. Bg2 {[%clk
0:03:05.8]} 5... c6 {[%clk 0:02:56.4]} 6. Nge2 {[%clk 0:03:07]} 6... Bf5 {[%clk
0:02:54.7]} 7. O-O {[%clk 0:03:07.9]} 7... e6 {[%clk 0:02:55.7]} 8. d3 {[%clk
0:03:08.8]} 8... Be7 {[%clk 0:02:53.4]} 9. Bf4 {[%clk 0:03:07.3]} 9... O-O
{[%clk 0:02:54.1]} 10. Qd2 {[%clk 0:03:06.6]} 10... Nbd7 {[%clk 0:02:53.2]} 11.
Rfe1 {[%clk 0:03:07.3]} 11... Nb6 {[%clk 0:02:51.6]} 12. Rad1 {[%clk 0:03:06.1]}
12... Nbd5 {[%clk 0:02:51]} 13. Nxd5 {[%clk 0:03:07.4]} 13... cxd5 {[%clk
0:02:47.4]} 14. h3 {[%clk 0:03:04]} 14... Rc8 {[%clk 0:02:46.5]} 15. g4 {[%clk
0:02:55.3]} 15... Bg6 {[%clk 0:02:46.7]} 16. Be5 {[%clk 0:02:54.7]} 16... Nd7
{[%clk 0:02:44.7]} 17. Bd4 {[%clk 0:02:54.8]} 17... Bf6 {[%clk 0:02:38.3]} 18.
c3 {[%clk 0:02:42.6]} 18... e5 {[%clk 0:02:13.3]} 19. Be3 {[%clk 0:02:40.3]}
19... Nc5 {[%clk 0:02:14.5]} 20. Nc1 {[%clk 0:02:27.5]} 20... h6 {[%clk
0:01:57]} 21. f4 {[%clk 0:02:21.6]} 21... exf4 {[%clk 0:01:41]} 22. Bxf4 {[%clk
0:02:21.2]} 22... Ne6 {[%clk 0:01:01]} 23. Be5 {[%clk 0:02:18.8]} 23... Bh4
{[%clk 0:00:50.3]} 24. Rf1 {[%clk 0:02:12.9]} 24... Bg5 {[%clk 0:00:44.3]} 25.
Qf2 {[%clk 0:02:08.3]} 25... Re8 {[%clk 0:00:38.7]} 26. d4 {[%clk 0:02:01.2]}
26... Bh4 {[%clk 0:00:24.3]} 27. Qf3 {[%clk 0:01:39]} 27... f6 {[%clk
0:00:25.1]} 28. Bh2 {[%clk 0:01:32.5]} 28... Be4 {[%clk 0:00:25.9]} 29. Qe2
{[%clk 0:01:31.8]} 29... Ng5 {[%clk 0:00:25.9]} 30. Nd3 {[%clk 0:01:26.6]} 30...
Bxg2 {[%clk 0:00:24.3]} 31. Qxg2 {[%clk 0:01:27.3]} 31... Re3 {[%clk 0:00:25.9]}
32. Nf4 {[%clk 0:01:24]} 32... Ne4 {[%clk 0:00:19.6]} 33. Rf3 {[%clk 0:01:21.9]}
33... Rxf3 {[%clk 0:00:15.8]} 34. Qxf3 {[%clk 0:01:23.2]} 34... Bf2+ {[%clk
0:00:11.9]} 35. Kg2 {[%clk 0:01:18.4]} 35... Bh4 {[%clk 0:00:11.4]} 36. Ng6
{[%clk 0:01:03.7]} 36... Bg5 {[%clk 0:00:11.1]} 37. h4 {[%clk 0:01:04.7]} 37...
Bd2 {[%clk 0:00:05]} 38. Qf5 {[%clk 0:01:06]} 38... Rc6 {[%clk 0:00:05.8]} 39.
Bf4 {[%clk 0:01:03]} 39... Bxf4 {[%clk 0:00:06.3]} 40. Nxf4 {[%clk 0:01:04.9]}
40... Qb6 {[%clk 0:00:06.5]} 41. Qxd5+ {[%clk 0:01:04.5]} 41... Kh7 {[%clk
0:00:07.2]} 42. Qxe4+ {[%clk 0:01:05.5]} 1-0

[Event "*** Titled Tuesday Blitz"]
[Site "Chess.com"]
[Date "2019.01.01"]
[Round "1"]
[White "Maili15"]
[Black "Alexander_Donchenko"]
[Result "0-1"]
[WhiteElo "2303"]
[BlackElo "2651"]
[TimeControl "180+2"]
[EndTime "13:08:00 PST"]
[Termination "Alexander_Donchenko won by resignation"]

1. d4 {[%clk 0:03:01.9]} 1... Nf6 {[%clk 0:02:59.7]} 2. c4 {[%clk 0:03:03]} 2...
g6 {[%clk 0:03:00.4]} 3. Nc3 {[%clk 0:03:04.1]} 3... Bg7 {[%clk 0:03:00]} 4. e4
{[%clk 0:03:05.2]} 4... d6 {[%clk 0:03:01.2]} 5. f4 {[%clk 0:03:06.5]} 5... c5
{[%clk 0:03:00.8]} 6. d5 {[%clk 0:03:06.8]} 6... e6 {[%clk 0:03:01.4]} 7. Nf3
{[%clk 0:03:07.8]} 7... exd5 {[%clk 0:03:02.1]} 8. cxd5 {[%clk 0:03:09.7]} 8...
O-O {[%clk 0:03:02.1]} 9. Be2 {[%clk 0:03:09.9]} 9... Bg4 {[%clk 0:02:57.9]} 10.
O-O {[%clk 0:03:10.4]} 10... Re8 {[%clk 0:02:55.9]} 11. h3 {[%clk 0:03:11.4]}
11... Bxf3 {[%clk 0:02:56.1]} 12. Bxf3 {[%clk 0:03:13.3]} 12... a6 {[%clk
0:02:55.9]} 13. a4 {[%clk 0:03:09.4]} 13... Nbd7 {[%clk 0:02:56.7]} 14. Re1
{[%clk 0:03:03]} 14... c4 {[%clk 0:02:54.4]} 15. Be3 {[%clk 0:02:58.7]} 15...
Rc8 {[%clk 0:02:49.8]} 16. a5 {[%clk 0:02:23.1]} 16... Nc5 {[%clk 0:02:26.9]}
17. Bxc5 {[%clk 0:02:22.4]} 17... Rxc5 {[%clk 0:02:26.3]} 18. e5 {[%clk
0:02:16.4]} 18... Nd7 {[%clk 0:02:26.8]} 19. Ne4 {[%clk 0:02:10.3]} 19... dxe5
{[%clk 0:02:15.3]} 20. Nxc5 {[%clk 0:02:10.9]} 20... Nxc5 {[%clk 0:02:16.6]} 21.
fxe5 {[%clk 0:02:09.1]} 21... Rxe5 {[%clk 0:02:16.3]} 22. Rxe5 {[%clk
0:02:07.6]} 22... Bxe5 {[%clk 0:02:18.2]} 23. Qe2 {[%clk 0:01:50.2]} 23... Nd3
{[%clk 0:02:16.5]} 24. Be4 {[%clk 0:01:39.2]} 24... Bxb2 {[%clk 0:02:13.7]} 25.
Rb1 {[%clk 0:01:37.2]} 25... Bd4+ {[%clk 0:02:11.8]} 26. Kh2 {[%clk 0:01:33.8]}
26... Qc7+ {[%clk 0:01:25.6]} 27. g3 {[%clk 0:01:34.2]} 27... Ne5 {[%clk
0:01:04.9]} 28. d6 {[%clk 0:01:26.6]} 28... Qxd6 {[%clk 0:01:04]} 29. Rxb7
{[%clk 0:01:26.9]} 29... c3 {[%clk 0:01:02.9]} 30. Bc2 {[%clk 0:00:59.2]} 30...
h5 {[%clk 0:01:01.8]} 31. Qe4 {[%clk 0:00:55.7]} 31... h4 {[%clk 0:00:59.4]} 32.
Qf4 {[%clk 0:00:33.6]} 32... hxg3+ {[%clk 0:00:51.8]} 33. Qxg3 {[%clk 0:00:30]}
33... Ng4+ {[%clk 0:00:48.2]} 34. Kg2 {[%clk 0:00:17.8]} 34... Ne3+ {[%clk
0:00:48.8]} 35. Kf3 {[%clk 0:00:15.6]} 35... Qxg3+ {[%clk 0:00:42.7]} 36. Kxg3
{[%clk 0:00:17.5]} 36... Nxc2 {[%clk 0:00:44.1]} 37. Rc7 {[%clk 0:00:18.6]}
37... Nb4 {[%clk 0:00:42]} 38. Kf3 {[%clk 0:00:18.2]} 38... c2 {[%clk
0:00:42.7]} 39. Ke2 {[%clk 0:00:19.1]} 39... Bb2 {[%clk 0:00:43.3]} 40. Rc8+
{[%clk 0:00:19.4]} 40... Kg7 {[%clk 0:00:43.8]} 41. Kd2 {[%clk 0:00:20]} 41...
c1=Q+ {[%clk 0:00:44.6]} 0-1